{"text_format":"3","workbook":"xlsx","n_sheets":3,"sheets":["Dnevnik kilometrine","Preračuni","podatkov v dnevniku"],"not_rendered":{"charts":1,"defined_names":17},"read":"whole","date_system":"1900"}

{"sheet":"Dnevnik kilometrine","index":0,"n_rows":29,"n_cols":5,"rows_kept":29,"merged":[[0,1,1,6]]}
[null,"DNEVNIK PREVOŽENIH KILOMETROV"]
{"$rows_empty":9}
[null,null,"ŠTEVILO KILOMETROV",null,"SKUPNO"]
[null,null,"ZA POVRAČILO",null,"POVRAČILO"]
[]
[]
[]
[]
[null,null,"2012-05-01",null,"2012-05-10"]
[]
[null,null,"OBDOBJE",null,"OBDOBJE"]
[null,null,"ZAČETEK",null,"KONEC"]
[]
[]
[]
[]
[]
[null,null,54,null,{"v":9800,"d":"9,800"}]
[]
[null,null,"POVRAČILO",null,"PREDHODNO STANJE GORIVA"]
[null,null,"c/Kilometer",null,"ŠTEVEC KILOMETROV"]

{"sheet":"Preračuni","index":1,"n_rows":19,"n_cols":15,"rows_kept":19,"merged":[[0,1,1,5]]}
[null,"DNEVNIK PREVOŽENIH KILOMETROV"]
[{"$nulls":14}," "]
[]
[]
[null,"DATUM","DEJAVNOST","ŠT. KILOM. 1","LOKACIJA","ŠT. KILOM. 2","CILJ","POVRAČILO","LITROV","STROŠEK","ZA POVRAČILO","PORABA GORIVA NA STO PREVOŽENIH KILOMETROV","c/KILOMETER","OPOMBE"]
[null,"2012-05-01","Izlet",{"v":10123,"d":"10,123"},"Škarnice – Glavna ul.",{"v":10130,"d":"10,130"},null,null,15.56,{"v":64.11,"d":"64.11 €"},{"$f":"kilometrov","v":7},{"$f":"IF(OR(LEN(podatki[[#This Row],[ŠT. KILOM. 2]]),podatki[[#This Row],[ŠT. KILOM. 1]]=\"\"),\"\",IFERROR(podatki[[#This Row],[ZA POVRAČILO]]/podatki[[#This Row],[LITROV]],\"\"))","v":""},{"$f":"IF(podatki[[#This Row],[PORABA GORIVA NA STO PREVOŽENIH KILOMETROV]]=\"\",\"\",100*podatki[[#This Row],[STROŠEK]]/podatki[[#This Row],[ZA POVRAČILO]])","v":""}]
[null,"2012-05-01","Izlet",{"v":10130,"d":"10,130"},"Pisarna",{"v":10200,"d":"10,200"},"Češnjeva ulica","Da",null,"",{"$f":"kilometrov","v":70},{"$f":"IF(OR(LEN(podatki[[#This Row],[ŠT. KILOM. 2]]),podatki[[#This Row],[ŠT. KILOM. 1]]=\"\"),\"\",IFERROR(podatki[[#This Row],[ZA POVRAČILO]]/podatki[[#This Row],[LITROV]],\"\"))","v":""},{"$f":"IF(podatki[[#This Row],[PORABA GORIVA NA STO PREVOŽENIH KILOMETROV]]=\"\",\"\",100*podatki[[#This Row],[STROŠEK]]/podatki[[#This Row],[ZA POVRAČILO]])","v":""}]
[null,"2012-05-01","Izlet",{"v":10200,"d":"10,200"},"Rjavo polje",{"v":10285,"d":"10,285"},"Pisarna","Da",null,"",{"$f":"kilometrov","v":85},{"$f":"IF(OR(LEN(podatki[[#This Row],[ŠT. KILOM. 2]]),podatki[[#This Row],[ŠT. KILOM. 1]]=\"\"),\"\",IFERROR(podatki[[#This Row],[ZA POVRAČILO]]/podatki[[#This Row],[LITROV]],\"\"))","v":""},{"$f":"IF(podatki[[#This Row],[PORABA GORIVA NA STO PREVOŽENIH KILOMETROV]]=\"\",\"\",100*podatki[[#This Row],[STROŠEK]]/podatki[[#This Row],[ZA POVRAČILO]])","v":""}]
[null,"2012-05-02","Izlet",{"v":10285,"d":"10,285"},"Pisarna",{"v":10450,"d":"10,450"},"Vinograd Kolo","Da",null,"",{"$f":"kilometrov","v":165},{"$f":"IF(OR(LEN(podatki[[#This Row],[ŠT. KILOM. 2]]),podatki[[#This Row],[ŠT. KILOM. 1]]=\"\"),\"\",IFERROR(podatki[[#This Row],[ZA POVRAČILO]]/podatki[[#This Row],[LITROV]],\"\"))","v":""},{"$f":"IF(podatki[[#This Row],[PORABA GORIVA NA STO PREVOŽENIH KILOMETROV]]=\"\",\"\",100*podatki[[#This Row],[STROŠEK]]/podatki[[#This Row],[ZA POVRAČILO]])","v":""}]
[null,"2012-05-02","Gorivo",{"v":10450,"d":"10,450"},"Lupina",{"$nulls":3},{"v":11.2,"d":"11.20"},{"v":55.42,"d":"55.42 €"},{"$f":"kilometrov","v":650},{"$f":"IF(OR(LEN(podatki[[#This Row],[ŠT. KILOM. 2]]),podatki[[#This Row],[ŠT. KILOM. 1]]=\"\"),\"\",IFERROR(podatki[[#This Row],[ZA POVRAČILO]]/podatki[[#This Row],[LITROV]],\"\"))","v":{"v":58.03571428571429,"d":"58.0"}},{"$f":"IF(podatki[[#This Row],[PORABA GORIVA NA STO PREVOŽENIH KILOMETROV]]=\"\",\"\",100*podatki[[#This Row],[STROŠEK]]/podatki[[#This Row],[ZA POVRAČILO]])","v":{"v":8.526153846153846,"d":"8.5"}}]
[null,"2012-05-02","Izlet",{"v":10500,"d":"10,500"},"Vinograd Kolo",{"v":10518,"d":"10,518"},"Pisarna","Da",null,"",{"$f":"kilometrov","v":18},{"$f":"IF(OR(LEN(podatki[[#This Row],[ŠT. KILOM. 2]]),podatki[[#This Row],[ŠT. KILOM. 1]]=\"\"),\"\",IFERROR(podatki[[#This Row],[ZA POVRAČILO]]/podatki[[#This Row],[LITROV]],\"\"))","v":""},{"$f":"IF(podatki[[#This Row],[PORABA GORIVA NA STO PREVOŽENIH KILOMETROV]]=\"\",\"\",100*podatki[[#This Row],[STROŠEK]]/podatki[[#This Row],[ZA POVRAČILO]])","v":""}]
[null,"2012-05-03","Izlet",{"v":10518,"d":"10,518"},"Pisarna",{"v":10745,"d":"10,745"},"Pisarna","Da",null,"",{"$f":"kilometrov","v":227},{"$f":"IF(OR(LEN(podatki[[#This Row],[ŠT. KILOM. 2]]),podatki[[#This Row],[ŠT. KILOM. 1]]=\"\"),\"\",IFERROR(podatki[[#This Row],[ZA POVRAČILO]]/podatki[[#This Row],[LITROV]],\"\"))","v":""},{"$f":"IF(podatki[[#This Row],[PORABA GORIVA NA STO PREVOŽENIH KILOMETROV]]=\"\",\"\",100*podatki[[#This Row],[STROŠEK]]/podatki[[#This Row],[ZA POVRAČILO]])","v":""}]
[null,"2012-05-04","Gorivo",{"v":10745,"d":"10,745"},"Škarnice – Glavna ul.",{"$nulls":3},{"v":16.6,"d":"16.60"},{"v":69.24,"d":"69.24 €"},{"$f":"kilometrov","v":295},{"$f":"IF(OR(LEN(podatki[[#This Row],[ŠT. KILOM. 2]]),podatki[[#This Row],[ŠT. KILOM. 1]]=\"\"),\"\",IFERROR(podatki[[#This Row],[ZA POVRAČILO]]/podatki[[#This Row],[LITROV]],\"\"))","v":{"v":17.771084337349397,"d":"17.8"}},{"$f":"IF(podatki[[#This Row],[PORABA GORIVA NA STO PREVOŽENIH KILOMETROV]]=\"\",\"\",100*podatki[[#This Row],[STROŠEK]]/podatki[[#This Row],[ZA POVRAČILO]])","v":{"v":23.471186440677965,"d":"23.5"}}]
[null,"2012-05-04","Izlet",{"v":10745,"d":"10,745"},"Pisarna",{"v":10800,"d":"10,800"},"Spodnji Duplek","Da",null,"",{"$f":"kilometrov","v":55},{"$f":"IF(OR(LEN(podatki[[#This Row],[ŠT. KILOM. 2]]),podatki[[#This Row],[ŠT. KILOM. 1]]=\"\"),\"\",IFERROR(podatki[[#This Row],[ZA POVRAČILO]]/podatki[[#This Row],[LITROV]],\"\"))","v":""},{"$f":"IF(podatki[[#This Row],[PORABA GORIVA NA STO PREVOŽENIH KILOMETROV]]=\"\",\"\",100*podatki[[#This Row],[STROŠEK]]/podatki[[#This Row],[ZA POVRAČILO]])","v":""}]
[null,"2012-05-04","Izlet",{"v":10800,"d":"10,800"},"Spodnji Duplek",{"v":10875,"d":"10,875"},"Pisarna","Da",null,"",{"$f":"kilometrov","v":75},{"$f":"IF(OR(LEN(podatki[[#This Row],[ŠT. KILOM. 2]]),podatki[[#This Row],[ŠT. KILOM. 1]]=\"\"),\"\",IFERROR(podatki[[#This Row],[ZA POVRAČILO]]/podatki[[#This Row],[LITROV]],\"\"))","v":""},{"$f":"IF(podatki[[#This Row],[PORABA GORIVA NA STO PREVOŽENIH KILOMETROV]]=\"\",\"\",100*podatki[[#This Row],[STROŠEK]]/podatki[[#This Row],[ZA POVRAČILO]])","v":""}]
[null,"2012-05-07","Izlet",{"v":10875,"d":"10,875"},"Pisarna",{"v":10921,"d":"10,921"},"Češnjeva ulica","Da",null,"",{"$f":"kilometrov","v":46},{"$f":"IF(OR(LEN(podatki[[#This Row],[ŠT. KILOM. 2]]),podatki[[#This Row],[ŠT. KILOM. 1]]=\"\"),\"\",IFERROR(podatki[[#This Row],[ZA POVRAČILO]]/podatki[[#This Row],[LITROV]],\"\"))","v":""},{"$f":"IF(podatki[[#This Row],[PORABA GORIVA NA STO PREVOŽENIH KILOMETROV]]=\"\",\"\",100*podatki[[#This Row],[STROŠEK]]/podatki[[#This Row],[ZA POVRAČILO]])","v":""}]
[null,"2012-05-07","Izlet",{"v":10921,"d":"10,921"},"Rjavo polje",{"v":10969,"d":"10,969"},"Pisarna","Da",null,"",{"$f":"kilometrov","v":48},{"$f":"IF(OR(LEN(podatki[[#This Row],[ŠT. KILOM. 2]]),podatki[[#This Row],[ŠT. KILOM. 1]]=\"\"),\"\",IFERROR(podatki[[#This Row],[ZA POVRAČILO]]/podatki[[#This Row],[LITROV]],\"\"))","v":""},{"$f":"IF(podatki[[#This Row],[PORABA GORIVA NA STO PREVOŽENIH KILOMETROV]]=\"\",\"\",100*podatki[[#This Row],[STROŠEK]]/podatki[[#This Row],[ZA POVRAČILO]])","v":""}]
[null,"2012-05-09","Izlet",{"v":10969,"d":"10,969"},"Pisarna",{"v":11000,"d":"11,000"},"Rečni breg","Da",null,"",{"$f":"kilometrov","v":31},{"$f":"IF(OR(LEN(podatki[[#This Row],[ŠT. KILOM. 2]]),podatki[[#This Row],[ŠT. KILOM. 1]]=\"\"),\"\",IFERROR(podatki[[#This Row],[ZA POVRAČILO]]/podatki[[#This Row],[LITROV]],\"\"))","v":""},{"$f":"IF(podatki[[#This Row],[PORABA GORIVA NA STO PREVOŽENIH KILOMETROV]]=\"\",\"\",100*podatki[[#This Row],[STROŠEK]]/podatki[[#This Row],[ZA POVRAČILO]])","v":""}]
[null,"2012-05-09","Izlet",{"v":11000,"d":"11,000"},"Rečni breg",{"v":11100,"d":"11,100"},"Osnovno","Št.",null,"",{"$f":"kilometrov","v":100},{"$f":"IF(OR(LEN(podatki[[#This Row],[ŠT. KILOM. 2]]),podatki[[#This Row],[ŠT. KILOM. 1]]=\"\"),\"\",IFERROR(podatki[[#This Row],[ZA POVRAČILO]]/podatki[[#This Row],[LITROV]],\"\"))","v":""},{"$f":"IF(podatki[[#This Row],[PORABA GORIVA NA STO PREVOŽENIH KILOMETROV]]=\"\",\"\",100*podatki[[#This Row],[STROŠEK]]/podatki[[#This Row],[ZA POVRAČILO]])","v":""}]

{"sheet":"podatkov v dnevniku","index":2,"n_rows":69,"n_cols":13,"rows_kept":69,"hidden":true}
["*** Ta list ostane skrit ***"]
[]
[]
[]
[]
[{"$nulls":8},{"$f":"OFFSET(I9,,drugaOs=\"Cena goriva\")","v":"c/Kilometer"}]
[{"$nulls":12},2]
[{"$nulls":7},"Izlet","Gorivo","Gorivo",null,"Druga os:  ",{"$f":"REPT(\"PORABA GORIVA NA STO PREVOŽENIH KILOMETROV\",M7=1)&REPT(\"Cena goriva\",M7=2)","v":"Cena goriva"}]
[{"$nulls":7},"prevoženih kilometrov","PORABA GORIVA NA STO PREVOŽENIH KILOMETROV","c/Kilometer"]
[null,null,"Število kilometrov za povračilo:  ",{"$f":"SUMIFS(podatki[ZA POVRAČILO],podatki[POVRAČILO],\"Da\",podatki[DATUM],\">=\"&začetekObdobja,podatki[DATUM],\"<=\"&konecObdobja)","v":820},null,1,{"$f":"začetekObdobja","v":"2012-05-01"},{"$f":"SUMIFS(podatki[ZA POVRAČILO],podatki[DATUM],G10,podatki[DEJAVNOST],$H$8)","v":162},{"$f":"IFERROR(AVERAGEIFS(podatki[PORABA GORIVA NA STO PREVOŽENIH KILOMETROV],podatki[DATUM],G10,podatki[DEJAVNOST],$I$8),NA())","v":{"$error":"#N/A"}},{"$f":"IFERROR(AVERAGEIFS(podatki[c/KILOMETER],podatki[DATUM],G10,podatki[DEJAVNOST],$J$8),NA())","v":{"$error":"#N/A"}}]
[null,null,"Skupno povračilo:  ",{"$f":"D10*PovračiloNaKilometer/100","v":{"v":442.8,"d":"442.80 €"}},null,2,{"$f":"G10+1","v":"2012-05-02"},{"$f":"SUMIFS(podatki[ZA POVRAČILO],podatki[DATUM],G11,podatki[DEJAVNOST],$H$8)","v":183},{"$f":"IFERROR(AVERAGEIFS(podatki[PORABA GORIVA NA STO PREVOŽENIH KILOMETROV],podatki[DATUM],G11,podatki[DEJAVNOST],$I$8),NA())","v":{"v":58.03571428571429,"d":"58.0"}},{"$f":"IFERROR(AVERAGEIFS(podatki[c/KILOMETER],podatki[DATUM],G11,podatki[DEJAVNOST],$J$8),NA())","v":{"v":8.526153846153846,"d":"8.5"}}]
[{"$nulls":5},3,"2012-05-03",{"$f":"SUMIFS(podatki[ZA POVRAČILO],podatki[DATUM],G12,podatki[DEJAVNOST],$H$8)","v":227},{"$f":"IFERROR(AVERAGEIFS(podatki[PORABA GORIVA NA STO PREVOŽENIH KILOMETROV],podatki[DATUM],G12,podatki[DEJAVNOST],$I$8),NA())","v":{"$error":"#N/A"}},{"$f":"IFERROR(AVERAGEIFS(podatki[c/KILOMETER],podatki[DATUM],G12,podatki[DEJAVNOST],$J$8),NA())","v":{"$error":"#N/A"}}]
[{"$nulls":5},4,"2012-05-04",{"$f":"SUMIFS(podatki[ZA POVRAČILO],podatki[DATUM],G13,podatki[DEJAVNOST],$H$8)","v":130},{"$f":"IFERROR(AVERAGEIFS(podatki[PORABA GORIVA NA STO PREVOŽENIH KILOMETROV],podatki[DATUM],G13,podatki[DEJAVNOST],$I$8),NA())","v":{"v":17.771084337349397,"d":"17.8"}},{"$f":"IFERROR(AVERAGEIFS(podatki[c/KILOMETER],podatki[DATUM],G13,podatki[DEJAVNOST],$J$8),NA())","v":{"v":23.471186440677965,"d":"23.5"}}]
[{"$nulls":5},5,"2012-05-05",{"$f":"SUMIFS(podatki[ZA POVRAČILO],podatki[DATUM],G14,podatki[DEJAVNOST],$H$8)","v":0},{"$f":"IFERROR(AVERAGEIFS(podatki[PORABA GORIVA NA STO PREVOŽENIH KILOMETROV],podatki[DATUM],G14,podatki[DEJAVNOST],$I$8),NA())","v":{"$error":"#N/A"}},{"$f":"IFERROR(AVERAGEIFS(podatki[c/KILOMETER],podatki[DATUM],G14,podatki[DEJAVNOST],$J$8),NA())","v":{"$error":"#N/A"}}]
[{"$nulls":5},6,"2012-05-06",{"$f":"SUMIFS(podatki[ZA POVRAČILO],podatki[DATUM],G15,podatki[DEJAVNOST],$H$8)","v":0},{"$f":"IFERROR(AVERAGEIFS(podatki[PORABA GORIVA NA STO PREVOŽENIH KILOMETROV],podatki[DATUM],G15,podatki[DEJAVNOST],$I$8),NA())","v":{"$error":"#N/A"}},{"$f":"IFERROR(AVERAGEIFS(podatki[c/KILOMETER],podatki[DATUM],G15,podatki[DEJAVNOST],$J$8),NA())","v":{"$error":"#N/A"}}]
[{"$nulls":5},7,"2012-05-07",{"$f":"SUMIFS(podatki[ZA POVRAČILO],podatki[DATUM],G16,podatki[DEJAVNOST],$H$8)","v":94},{"$f":"IFERROR(AVERAGEIFS(podatki[PORABA GORIVA NA STO PREVOŽENIH KILOMETROV],podatki[DATUM],G16,podatki[DEJAVNOST],$I$8),NA())","v":{"$error":"#N/A"}},{"$f":"IFERROR(AVERAGEIFS(podatki[c/KILOMETER],podatki[DATUM],G16,podatki[DEJAVNOST],$J$8),NA())","v":{"$error":"#N/A"}}]
[{"$nulls":5},8,"2012-05-08",{"$f":"SUMIFS(podatki[ZA POVRAČILO],podatki[DATUM],G17,podatki[DEJAVNOST],$H$8)","v":0},{"$f":"IFERROR(AVERAGEIFS(podatki[PORABA GORIVA NA STO PREVOŽENIH KILOMETROV],podatki[DATUM],G17,podatki[DEJAVNOST],$I$8),NA())","v":{"$error":"#N/A"}},{"$f":"IFERROR(AVERAGEIFS(podatki[c/KILOMETER],podatki[DATUM],G17,podatki[DEJAVNOST],$J$8),NA())","v":{"$error":"#N/A"}}]
[{"$nulls":5},9,"2012-05-09",{"$f":"SUMIFS(podatki[ZA POVRAČILO],podatki[DATUM],G18,podatki[DEJAVNOST],$H$8)","v":131},{"$f":"IFERROR(AVERAGEIFS(podatki[PORABA GORIVA NA STO PREVOŽENIH KILOMETROV],podatki[DATUM],G18,podatki[DEJAVNOST],$I$8),NA())","v":{"$error":"#N/A"}},{"$f":"IFERROR(AVERAGEIFS(podatki[c/KILOMETER],podatki[DATUM],G18,podatki[DEJAVNOST],$J$8),NA())","v":{"$error":"#N/A"}}]
[{"$nulls":5},10,"2012-05-10",{"$f":"SUMIFS(podatki[ZA POVRAČILO],podatki[DATUM],G19,podatki[DEJAVNOST],$H$8)","v":0},{"$f":"IFERROR(AVERAGEIFS(podatki[PORABA GORIVA NA STO PREVOŽENIH KILOMETROV],podatki[DATUM],G19,podatki[DEJAVNOST],$I$8),NA())","v":{"$error":"#N/A"}},{"$f":"IFERROR(AVERAGEIFS(podatki[c/KILOMETER],podatki[DATUM],G19,podatki[DEJAVNOST],$J$8),NA())","v":{"$error":"#N/A"}}]
[{"$nulls":5},11,"2012-05-11",{"$f":"SUMIFS(podatki[ZA POVRAČILO],podatki[DATUM],G20,podatki[DEJAVNOST],$H$8)","v":0},{"$f":"IFERROR(AVERAGEIFS(podatki[PORABA GORIVA NA STO PREVOŽENIH KILOMETROV],podatki[DATUM],G20,podatki[DEJAVNOST],$I$8),NA())","v":{"$error":"#N/A"}},{"$f":"IFERROR(AVERAGEIFS(podatki[c/KILOMETER],podatki[DATUM],G20,podatki[DEJAVNOST],$J$8),NA())","v":{"$error":"#N/A"}}]
[{"$nulls":5},12,"2012-05-12",{"$f":"SUMIFS(podatki[ZA POVRAČILO],podatki[DATUM],G21,podatki[DEJAVNOST],$H$8)","v":0},{"$f":"IFERROR(AVERAGEIFS(podatki[PORABA GORIVA NA STO PREVOŽENIH KILOMETROV],podatki[DATUM],G21,podatki[DEJAVNOST],$I$8),NA())","v":{"$error":"#N/A"}},{"$f":"IFERROR(AVERAGEIFS(podatki[c/KILOMETER],podatki[DATUM],G21,podatki[DEJAVNOST],$J$8),NA())","v":{"$error":"#N/A"}}]
[{"$nulls":5},13,"2012-05-13",{"$f":"SUMIFS(podatki[ZA POVRAČILO],podatki[DATUM],G22,podatki[DEJAVNOST],$H$8)","v":0},{"$f":"IFERROR(AVERAGEIFS(podatki[PORABA GORIVA NA STO PREVOŽENIH KILOMETROV],podatki[DATUM],G22,podatki[DEJAVNOST],$I$8),NA())","v":{"$error":"#N/A"}},{"$f":"IFERROR(AVERAGEIFS(podatki[c/KILOMETER],podatki[DATUM],G22,podatki[DEJAVNOST],$J$8),NA())","v":{"$error":"#N/A"}}]
[{"$nulls":5},14,"2012-05-14",{"$f":"SUMIFS(podatki[ZA POVRAČILO],podatki[DATUM],G23,podatki[DEJAVNOST],$H$8)","v":0},{"$f":"IFERROR(AVERAGEIFS(podatki[PORABA GORIVA NA STO PREVOŽENIH KILOMETROV],podatki[DATUM],G23,podatki[DEJAVNOST],$I$8),NA())","v":{"$error":"#N/A"}},{"$f":"IFERROR(AVERAGEIFS(podatki[c/KILOMETER],podatki[DATUM],G23,podatki[DEJAVNOST],$J$8),NA())","v":{"$error":"#N/A"}}]
[{"$nulls":5},15,"2012-05-15",{"$f":"SUMIFS(podatki[ZA POVRAČILO],podatki[DATUM],G24,podatki[DEJAVNOST],$H$8)","v":0},{"$f":"IFERROR(AVERAGEIFS(podatki[PORABA GORIVA NA STO PREVOŽENIH KILOMETROV],podatki[DATUM],G24,podatki[DEJAVNOST],$I$8),NA())","v":{"$error":"#N/A"}},{"$f":"IFERROR(AVERAGEIFS(podatki[c/KILOMETER],podatki[DATUM],G24,podatki[DEJAVNOST],$J$8),NA())","v":{"$error":"#N/A"}}]
[{"$nulls":5},16,"2012-05-16",{"$f":"SUMIFS(podatki[ZA POVRAČILO],podatki[DATUM],G25,podatki[DEJAVNOST],$H$8)","v":0},{"$f":"IFERROR(AVERAGEIFS(podatki[PORABA GORIVA NA STO PREVOŽENIH KILOMETROV],podatki[DATUM],G25,podatki[DEJAVNOST],$I$8),NA())","v":{"$error":"#N/A"}},{"$f":"IFERROR(AVERAGEIFS(podatki[c/KILOMETER],podatki[DATUM],G25,podatki[DEJAVNOST],$J$8),NA())","v":{"$error":"#N/A"}}]
[{"$nulls":5},17,"2012-05-17",{"$f":"SUMIFS(podatki[ZA POVRAČILO],podatki[DATUM],G26,podatki[DEJAVNOST],$H$8)","v":0},{"$f":"IFERROR(AVERAGEIFS(podatki[PORABA GORIVA NA STO PREVOŽENIH KILOMETROV],podatki[DATUM],G26,podatki[DEJAVNOST],$I$8),NA())","v":{"$error":"#N/A"}},{"$f":"IFERROR(AVERAGEIFS(podatki[c/KILOMETER],podatki[DATUM],G26,podatki[DEJAVNOST],$J$8),NA())","v":{"$error":"#N/A"}}]
[{"$nulls":5},18,"2012-05-18",{"$f":"SUMIFS(podatki[ZA POVRAČILO],podatki[DATUM],G27,podatki[DEJAVNOST],$H$8)","v":0},{"$f":"IFERROR(AVERAGEIFS(podatki[PORABA GORIVA NA STO PREVOŽENIH KILOMETROV],podatki[DATUM],G27,podatki[DEJAVNOST],$I$8),NA())","v":{"$error":"#N/A"}},{"$f":"IFERROR(AVERAGEIFS(podatki[c/KILOMETER],podatki[DATUM],G27,podatki[DEJAVNOST],$J$8),NA())","v":{"$error":"#N/A"}}]
[{"$nulls":5},19,"2012-05-19",{"$f":"SUMIFS(podatki[ZA POVRAČILO],podatki[DATUM],G28,podatki[DEJAVNOST],$H$8)","v":0},{"$f":"IFERROR(AVERAGEIFS(podatki[PORABA GORIVA NA STO PREVOŽENIH KILOMETROV],podatki[DATUM],G28,podatki[DEJAVNOST],$I$8),NA())","v":{"$error":"#N/A"}},{"$f":"IFERROR(AVERAGEIFS(podatki[c/KILOMETER],podatki[DATUM],G28,podatki[DEJAVNOST],$J$8),NA())","v":{"$error":"#N/A"}}]
[{"$nulls":5},20,"2012-05-20",{"$f":"SUMIFS(podatki[ZA POVRAČILO],podatki[DATUM],G29,podatki[DEJAVNOST],$H$8)","v":0},{"$f":"IFERROR(AVERAGEIFS(podatki[PORABA GORIVA NA STO PREVOŽENIH KILOMETROV],podatki[DATUM],G29,podatki[DEJAVNOST],$I$8),NA())","v":{"$error":"#N/A"}},{"$f":"IFERROR(AVERAGEIFS(podatki[c/KILOMETER],podatki[DATUM],G29,podatki[DEJAVNOST],$J$8),NA())","v":{"$error":"#N/A"}}]
[{"$nulls":5},21,"2012-05-21",{"$f":"SUMIFS(podatki[ZA POVRAČILO],podatki[DATUM],G30,podatki[DEJAVNOST],$H$8)","v":0},{"$f":"IFERROR(AVERAGEIFS(podatki[PORABA GORIVA NA STO PREVOŽENIH KILOMETROV],podatki[DATUM],G30,podatki[DEJAVNOST],$I$8),NA())","v":{"$error":"#N/A"}},{"$f":"IFERROR(AVERAGEIFS(podatki[c/KILOMETER],podatki[DATUM],G30,podatki[DEJAVNOST],$J$8),NA())","v":{"$error":"#N/A"}}]
[{"$nulls":5},22,"2012-05-22",{"$f":"SUMIFS(podatki[ZA POVRAČILO],podatki[DATUM],G31,podatki[DEJAVNOST],$H$8)","v":0},{"$f":"IFERROR(AVERAGEIFS(podatki[PORABA GORIVA NA STO PREVOŽENIH KILOMETROV],podatki[DATUM],G31,podatki[DEJAVNOST],$I$8),NA())","v":{"$error":"#N/A"}},{"$f":"IFERROR(AVERAGEIFS(podatki[c/KILOMETER],podatki[DATUM],G31,podatki[DEJAVNOST],$J$8),NA())","v":{"$error":"#N/A"}}]
[{"$nulls":5},23,"2012-05-23",{"$f":"SUMIFS(podatki[ZA POVRAČILO],podatki[DATUM],G32,podatki[DEJAVNOST],$H$8)","v":0},{"$f":"IFERROR(AVERAGEIFS(podatki[PORABA GORIVA NA STO PREVOŽENIH KILOMETROV],podatki[DATUM],G32,podatki[DEJAVNOST],$I$8),NA())","v":{"$error":"#N/A"}},{"$f":"IFERROR(AVERAGEIFS(podatki[c/KILOMETER],podatki[DATUM],G32,podatki[DEJAVNOST],$J$8),NA())","v":{"$error":"#N/A"}}]
[{"$nulls":5},24,"2012-05-24",{"$f":"SUMIFS(podatki[ZA POVRAČILO],podatki[DATUM],G33,podatki[DEJAVNOST],$H$8)","v":0},{"$f":"IFERROR(AVERAGEIFS(podatki[PORABA GORIVA NA STO PREVOŽENIH KILOMETROV],podatki[DATUM],G33,podatki[DEJAVNOST],$I$8),NA())","v":{"$error":"#N/A"}},{"$f":"IFERROR(AVERAGEIFS(podatki[c/KILOMETER],podatki[DATUM],G33,podatki[DEJAVNOST],$J$8),NA())","v":{"$error":"#N/A"}}]
[{"$nulls":5},25,"2012-05-25",{"$f":"SUMIFS(podatki[ZA POVRAČILO],podatki[DATUM],G34,podatki[DEJAVNOST],$H$8)","v":0},{"$f":"IFERROR(AVERAGEIFS(podatki[PORABA GORIVA NA STO PREVOŽENIH KILOMETROV],podatki[DATUM],G34,podatki[DEJAVNOST],$I$8),NA())","v":{"$error":"#N/A"}},{"$f":"IFERROR(AVERAGEIFS(podatki[c/KILOMETER],podatki[DATUM],G34,podatki[DEJAVNOST],$J$8),NA())","v":{"$error":"#N/A"}}]
[{"$nulls":5},26,"2012-05-26",{"$f":"SUMIFS(podatki[ZA POVRAČILO],podatki[DATUM],G35,podatki[DEJAVNOST],$H$8)","v":0},{"$f":"IFERROR(AVERAGEIFS(podatki[PORABA GORIVA NA STO PREVOŽENIH KILOMETROV],podatki[DATUM],G35,podatki[DEJAVNOST],$I$8),NA())","v":{"$error":"#N/A"}},{"$f":"IFERROR(AVERAGEIFS(podatki[c/KILOMETER],podatki[DATUM],G35,podatki[DEJAVNOST],$J$8),NA())","v":{"$error":"#N/A"}}]
[{"$nulls":5},27,"2012-05-27",{"$f":"SUMIFS(podatki[ZA POVRAČILO],podatki[DATUM],G36,podatki[DEJAVNOST],$H$8)","v":0},{"$f":"IFERROR(AVERAGEIFS(podatki[PORABA GORIVA NA STO PREVOŽENIH KILOMETROV],podatki[DATUM],G36,podatki[DEJAVNOST],$I$8),NA())","v":{"$error":"#N/A"}},{"$f":"IFERROR(AVERAGEIFS(podatki[c/KILOMETER],podatki[DATUM],G36,podatki[DEJAVNOST],$J$8),NA())","v":{"$error":"#N/A"}}]
[{"$nulls":5},28,"2012-05-28",{"$f":"SUMIFS(podatki[ZA POVRAČILO],podatki[DATUM],G37,podatki[DEJAVNOST],$H$8)","v":0},{"$f":"IFERROR(AVERAGEIFS(podatki[PORABA GORIVA NA STO PREVOŽENIH KILOMETROV],podatki[DATUM],G37,podatki[DEJAVNOST],$I$8),NA())","v":{"$error":"#N/A"}},{"$f":"IFERROR(AVERAGEIFS(podatki[c/KILOMETER],podatki[DATUM],G37,podatki[DEJAVNOST],$J$8),NA())","v":{"$error":"#N/A"}}]
[{"$nulls":5},29,"2012-05-29",{"$f":"SUMIFS(podatki[ZA POVRAČILO],podatki[DATUM],G38,podatki[DEJAVNOST],$H$8)","v":0},{"$f":"IFERROR(AVERAGEIFS(podatki[PORABA GORIVA NA STO PREVOŽENIH KILOMETROV],podatki[DATUM],G38,podatki[DEJAVNOST],$I$8),NA())","v":{"$error":"#N/A"}},{"$f":"IFERROR(AVERAGEIFS(podatki[c/KILOMETER],podatki[DATUM],G38,podatki[DEJAVNOST],$J$8),NA())","v":{"$error":"#N/A"}}]
[{"$nulls":5},30,"2012-05-30",{"$f":"SUMIFS(podatki[ZA POVRAČILO],podatki[DATUM],G39,podatki[DEJAVNOST],$H$8)","v":0},{"$f":"IFERROR(AVERAGEIFS(podatki[PORABA GORIVA NA STO PREVOŽENIH KILOMETROV],podatki[DATUM],G39,podatki[DEJAVNOST],$I$8),NA())","v":{"$error":"#N/A"}},{"$f":"IFERROR(AVERAGEIFS(podatki[c/KILOMETER],podatki[DATUM],G39,podatki[DEJAVNOST],$J$8),NA())","v":{"$error":"#N/A"}}]
[{"$nulls":5},31,"2012-05-31",{"$f":"SUMIFS(podatki[ZA POVRAČILO],podatki[DATUM],G40,podatki[DEJAVNOST],$H$8)","v":0},{"$f":"IFERROR(AVERAGEIFS(podatki[PORABA GORIVA NA STO PREVOŽENIH KILOMETROV],podatki[DATUM],G40,podatki[DEJAVNOST],$I$8),NA())","v":{"$error":"#N/A"}},{"$f":"IFERROR(AVERAGEIFS(podatki[c/KILOMETER],podatki[DATUM],G40,podatki[DEJAVNOST],$J$8),NA())","v":{"$error":"#N/A"}}]
[{"$nulls":5},32,"2012-06-01",{"$f":"SUMIFS(podatki[ZA POVRAČILO],podatki[DATUM],G41,podatki[DEJAVNOST],$H$8)","v":0},{"$f":"IFERROR(AVERAGEIFS(podatki[PORABA GORIVA NA STO PREVOŽENIH KILOMETROV],podatki[DATUM],G41,podatki[DEJAVNOST],$I$8),NA())","v":{"$error":"#N/A"}},{"$f":"IFERROR(AVERAGEIFS(podatki[c/KILOMETER],podatki[DATUM],G41,podatki[DEJAVNOST],$J$8),NA())","v":{"$error":"#N/A"}}]
[{"$nulls":5},33,"2012-06-02",{"$f":"SUMIFS(podatki[ZA POVRAČILO],podatki[DATUM],G42,podatki[DEJAVNOST],$H$8)","v":0},{"$f":"IFERROR(AVERAGEIFS(podatki[PORABA GORIVA NA STO PREVOŽENIH KILOMETROV],podatki[DATUM],G42,podatki[DEJAVNOST],$I$8),NA())","v":{"$error":"#N/A"}},{"$f":"IFERROR(AVERAGEIFS(podatki[c/KILOMETER],podatki[DATUM],G42,podatki[DEJAVNOST],$J$8),NA())","v":{"$error":"#N/A"}}]
[{"$nulls":5},34,{"$f":"G42+1","v":"2012-06-03"},{"$f":"SUMIFS(podatki[ZA POVRAČILO],podatki[DATUM],G43,podatki[DEJAVNOST],$H$8)","v":0},{"$f":"IFERROR(AVERAGEIFS(podatki[PORABA GORIVA NA STO PREVOŽENIH KILOMETROV],podatki[DATUM],G43,podatki[DEJAVNOST],$I$8),NA())","v":{"$error":"#N/A"}},{"$f":"IFERROR(AVERAGEIFS(podatki[c/KILOMETER],podatki[DATUM],G43,podatki[DEJAVNOST],$J$8),NA())","v":{"$error":"#N/A"}}]
[{"$nulls":5},35,"2012-06-04",{"$f":"SUMIFS(podatki[ZA POVRAČILO],podatki[DATUM],G44,podatki[DEJAVNOST],$H$8)","v":0},{"$f":"IFERROR(AVERAGEIFS(podatki[PORABA GORIVA NA STO PREVOŽENIH KILOMETROV],podatki[DATUM],G44,podatki[DEJAVNOST],$I$8),NA())","v":{"$error":"#N/A"}},{"$f":"IFERROR(AVERAGEIFS(podatki[c/KILOMETER],podatki[DATUM],G44,podatki[DEJAVNOST],$J$8),NA())","v":{"$error":"#N/A"}}]
[{"$nulls":5},36,"2012-06-05",{"$f":"SUMIFS(podatki[ZA POVRAČILO],podatki[DATUM],G45,podatki[DEJAVNOST],$H$8)","v":0},{"$f":"IFERROR(AVERAGEIFS(podatki[PORABA GORIVA NA STO PREVOŽENIH KILOMETROV],podatki[DATUM],G45,podatki[DEJAVNOST],$I$8),NA())","v":{"$error":"#N/A"}},{"$f":"IFERROR(AVERAGEIFS(podatki[c/KILOMETER],podatki[DATUM],G45,podatki[DEJAVNOST],$J$8),NA())","v":{"$error":"#N/A"}}]
[{"$nulls":5},37,"2012-06-06",{"$f":"SUMIFS(podatki[ZA POVRAČILO],podatki[DATUM],G46,podatki[DEJAVNOST],$H$8)","v":0},{"$f":"IFERROR(AVERAGEIFS(podatki[PORABA GORIVA NA STO PREVOŽENIH KILOMETROV],podatki[DATUM],G46,podatki[DEJAVNOST],$I$8),NA())","v":{"$error":"#N/A"}},{"$f":"IFERROR(AVERAGEIFS(podatki[c/KILOMETER],podatki[DATUM],G46,podatki[DEJAVNOST],$J$8),NA())","v":{"$error":"#N/A"}}]
[{"$nulls":5},38,"2012-06-07",{"$f":"SUMIFS(podatki[ZA POVRAČILO],podatki[DATUM],G47,podatki[DEJAVNOST],$H$8)","v":0},{"$f":"IFERROR(AVERAGEIFS(podatki[PORABA GORIVA NA STO PREVOŽENIH KILOMETROV],podatki[DATUM],G47,podatki[DEJAVNOST],$I$8),NA())","v":{"$error":"#N/A"}},{"$f":"IFERROR(AVERAGEIFS(podatki[c/KILOMETER],podatki[DATUM],G47,podatki[DEJAVNOST],$J$8),NA())","v":{"$error":"#N/A"}}]
[{"$nulls":5},39,"2012-06-08",{"$f":"SUMIFS(podatki[ZA POVRAČILO],podatki[DATUM],G48,podatki[DEJAVNOST],$H$8)","v":0},{"$f":"IFERROR(AVERAGEIFS(podatki[PORABA GORIVA NA STO PREVOŽENIH KILOMETROV],podatki[DATUM],G48,podatki[DEJAVNOST],$I$8),NA())","v":{"$error":"#N/A"}},{"$f":"IFERROR(AVERAGEIFS(podatki[c/KILOMETER],podatki[DATUM],G48,podatki[DEJAVNOST],$J$8),NA())","v":{"$error":"#N/A"}}]
[{"$nulls":5},40,"2012-06-09",{"$f":"SUMIFS(podatki[ZA POVRAČILO],podatki[DATUM],G49,podatki[DEJAVNOST],$H$8)","v":0},{"$f":"IFERROR(AVERAGEIFS(podatki[PORABA GORIVA NA STO PREVOŽENIH KILOMETROV],podatki[DATUM],G49,podatki[DEJAVNOST],$I$8),NA())","v":{"$error":"#N/A"}},{"$f":"IFERROR(AVERAGEIFS(podatki[c/KILOMETER],podatki[DATUM],G49,podatki[DEJAVNOST],$J$8),NA())","v":{"$error":"#N/A"}}]
[{"$nulls":5},41,"2012-06-10",{"$f":"SUMIFS(podatki[ZA POVRAČILO],podatki[DATUM],G50,podatki[DEJAVNOST],$H$8)","v":0},{"$f":"IFERROR(AVERAGEIFS(podatki[PORABA GORIVA NA STO PREVOŽENIH KILOMETROV],podatki[DATUM],G50,podatki[DEJAVNOST],$I$8),NA())","v":{"$error":"#N/A"}},{"$f":"IFERROR(AVERAGEIFS(podatki[c/KILOMETER],podatki[DATUM],G50,podatki[DEJAVNOST],$J$8),NA())","v":{"$error":"#N/A"}}]
[{"$nulls":5},42,"2012-06-11",{"$f":"SUMIFS(podatki[ZA POVRAČILO],podatki[DATUM],G51,podatki[DEJAVNOST],$H$8)","v":0},{"$f":"IFERROR(AVERAGEIFS(podatki[PORABA GORIVA NA STO PREVOŽENIH KILOMETROV],podatki[DATUM],G51,podatki[DEJAVNOST],$I$8),NA())","v":{"$error":"#N/A"}},{"$f":"IFERROR(AVERAGEIFS(podatki[c/KILOMETER],podatki[DATUM],G51,podatki[DEJAVNOST],$J$8),NA())","v":{"$error":"#N/A"}}]
[{"$nulls":5},43,"2012-06-12",{"$f":"SUMIFS(podatki[ZA POVRAČILO],podatki[DATUM],G52,podatki[DEJAVNOST],$H$8)","v":0},{"$f":"IFERROR(AVERAGEIFS(podatki[PORABA GORIVA NA STO PREVOŽENIH KILOMETROV],podatki[DATUM],G52,podatki[DEJAVNOST],$I$8),NA())","v":{"$error":"#N/A"}},{"$f":"IFERROR(AVERAGEIFS(podatki[c/KILOMETER],podatki[DATUM],G52,podatki[DEJAVNOST],$J$8),NA())","v":{"$error":"#N/A"}}]
[{"$nulls":5},44,"2012-06-13",{"$f":"SUMIFS(podatki[ZA POVRAČILO],podatki[DATUM],G53,podatki[DEJAVNOST],$H$8)","v":0},{"$f":"IFERROR(AVERAGEIFS(podatki[PORABA GORIVA NA STO PREVOŽENIH KILOMETROV],podatki[DATUM],G53,podatki[DEJAVNOST],$I$8),NA())","v":{"$error":"#N/A"}},{"$f":"IFERROR(AVERAGEIFS(podatki[c/KILOMETER],podatki[DATUM],G53,podatki[DEJAVNOST],$J$8),NA())","v":{"$error":"#N/A"}}]
[{"$nulls":5},45,"2012-06-14",{"$f":"SUMIFS(podatki[ZA POVRAČILO],podatki[DATUM],G54,podatki[DEJAVNOST],$H$8)","v":0},{"$f":"IFERROR(AVERAGEIFS(podatki[PORABA GORIVA NA STO PREVOŽENIH KILOMETROV],podatki[DATUM],G54,podatki[DEJAVNOST],$I$8),NA())","v":{"$error":"#N/A"}},{"$f":"IFERROR(AVERAGEIFS(podatki[c/KILOMETER],podatki[DATUM],G54,podatki[DEJAVNOST],$J$8),NA())","v":{"$error":"#N/A"}}]
[{"$nulls":5},46,"2012-06-15",{"$f":"SUMIFS(podatki[ZA POVRAČILO],podatki[DATUM],G55,podatki[DEJAVNOST],$H$8)","v":0},{"$f":"IFERROR(AVERAGEIFS(podatki[PORABA GORIVA NA STO PREVOŽENIH KILOMETROV],podatki[DATUM],G55,podatki[DEJAVNOST],$I$8),NA())","v":{"$error":"#N/A"}},{"$f":"IFERROR(AVERAGEIFS(podatki[c/KILOMETER],podatki[DATUM],G55,podatki[DEJAVNOST],$J$8),NA())","v":{"$error":"#N/A"}}]
[{"$nulls":5},47,"2012-06-16",{"$f":"SUMIFS(podatki[ZA POVRAČILO],podatki[DATUM],G56,podatki[DEJAVNOST],$H$8)","v":0},{"$f":"IFERROR(AVERAGEIFS(podatki[PORABA GORIVA NA STO PREVOŽENIH KILOMETROV],podatki[DATUM],G56,podatki[DEJAVNOST],$I$8),NA())","v":{"$error":"#N/A"}},{"$f":"IFERROR(AVERAGEIFS(podatki[c/KILOMETER],podatki[DATUM],G56,podatki[DEJAVNOST],$J$8),NA())","v":{"$error":"#N/A"}}]
[{"$nulls":5},48,"2012-06-17",{"$f":"SUMIFS(podatki[ZA POVRAČILO],podatki[DATUM],G57,podatki[DEJAVNOST],$H$8)","v":0},{"$f":"IFERROR(AVERAGEIFS(podatki[PORABA GORIVA NA STO PREVOŽENIH KILOMETROV],podatki[DATUM],G57,podatki[DEJAVNOST],$I$8),NA())","v":{"$error":"#N/A"}},{"$f":"IFERROR(AVERAGEIFS(podatki[c/KILOMETER],podatki[DATUM],G57,podatki[DEJAVNOST],$J$8),NA())","v":{"$error":"#N/A"}}]
[{"$nulls":5},49,"2012-06-18",{"$f":"SUMIFS(podatki[ZA POVRAČILO],podatki[DATUM],G58,podatki[DEJAVNOST],$H$8)","v":0},{"$f":"IFERROR(AVERAGEIFS(podatki[PORABA GORIVA NA STO PREVOŽENIH KILOMETROV],podatki[DATUM],G58,podatki[DEJAVNOST],$I$8),NA())","v":{"$error":"#N/A"}},{"$f":"IFERROR(AVERAGEIFS(podatki[c/KILOMETER],podatki[DATUM],G58,podatki[DEJAVNOST],$J$8),NA())","v":{"$error":"#N/A"}}]
[{"$nulls":5},50,"2012-06-19",{"$f":"SUMIFS(podatki[ZA POVRAČILO],podatki[DATUM],G59,podatki[DEJAVNOST],$H$8)","v":0},{"$f":"IFERROR(AVERAGEIFS(podatki[PORABA GORIVA NA STO PREVOŽENIH KILOMETROV],podatki[DATUM],G59,podatki[DEJAVNOST],$I$8),NA())","v":{"$error":"#N/A"}},{"$f":"IFERROR(AVERAGEIFS(podatki[c/KILOMETER],podatki[DATUM],G59,podatki[DEJAVNOST],$J$8),NA())","v":{"$error":"#N/A"}}]
[{"$nulls":5},51,"2012-06-20",{"$f":"SUMIFS(podatki[ZA POVRAČILO],podatki[DATUM],G60,podatki[DEJAVNOST],$H$8)","v":0},{"$f":"IFERROR(AVERAGEIFS(podatki[PORABA GORIVA NA STO PREVOŽENIH KILOMETROV],podatki[DATUM],G60,podatki[DEJAVNOST],$I$8),NA())","v":{"$error":"#N/A"}},{"$f":"IFERROR(AVERAGEIFS(podatki[c/KILOMETER],podatki[DATUM],G60,podatki[DEJAVNOST],$J$8),NA())","v":{"$error":"#N/A"}}]
[{"$nulls":5},52,"2012-06-21",{"$f":"SUMIFS(podatki[ZA POVRAČILO],podatki[DATUM],G61,podatki[DEJAVNOST],$H$8)","v":0},{"$f":"IFERROR(AVERAGEIFS(podatki[PORABA GORIVA NA STO PREVOŽENIH KILOMETROV],podatki[DATUM],G61,podatki[DEJAVNOST],$I$8),NA())","v":{"$error":"#N/A"}},{"$f":"IFERROR(AVERAGEIFS(podatki[c/KILOMETER],podatki[DATUM],G61,podatki[DEJAVNOST],$J$8),NA())","v":{"$error":"#N/A"}}]
[{"$nulls":5},53,"2012-06-22",{"$f":"SUMIFS(podatki[ZA POVRAČILO],podatki[DATUM],G62,podatki[DEJAVNOST],$H$8)","v":0},{"$f":"IFERROR(AVERAGEIFS(podatki[PORABA GORIVA NA STO PREVOŽENIH KILOMETROV],podatki[DATUM],G62,podatki[DEJAVNOST],$I$8),NA())","v":{"$error":"#N/A"}},{"$f":"IFERROR(AVERAGEIFS(podatki[c/KILOMETER],podatki[DATUM],G62,podatki[DEJAVNOST],$J$8),NA())","v":{"$error":"#N/A"}}]
[{"$nulls":5},54,"2012-06-23",{"$f":"SUMIFS(podatki[ZA POVRAČILO],podatki[DATUM],G63,podatki[DEJAVNOST],$H$8)","v":0},{"$f":"IFERROR(AVERAGEIFS(podatki[PORABA GORIVA NA STO PREVOŽENIH KILOMETROV],podatki[DATUM],G63,podatki[DEJAVNOST],$I$8),NA())","v":{"$error":"#N/A"}},{"$f":"IFERROR(AVERAGEIFS(podatki[c/KILOMETER],podatki[DATUM],G63,podatki[DEJAVNOST],$J$8),NA())","v":{"$error":"#N/A"}}]
[{"$nulls":5},55,"2012-06-24",{"$f":"SUMIFS(podatki[ZA POVRAČILO],podatki[DATUM],G64,podatki[DEJAVNOST],$H$8)","v":0},{"$f":"IFERROR(AVERAGEIFS(podatki[PORABA GORIVA NA STO PREVOŽENIH KILOMETROV],podatki[DATUM],G64,podatki[DEJAVNOST],$I$8),NA())","v":{"$error":"#N/A"}},{"$f":"IFERROR(AVERAGEIFS(podatki[c/KILOMETER],podatki[DATUM],G64,podatki[DEJAVNOST],$J$8),NA())","v":{"$error":"#N/A"}}]
[{"$nulls":5},56,"2012-06-25",{"$f":"SUMIFS(podatki[ZA POVRAČILO],podatki[DATUM],G65,podatki[DEJAVNOST],$H$8)","v":0},{"$f":"IFERROR(AVERAGEIFS(podatki[PORABA GORIVA NA STO PREVOŽENIH KILOMETROV],podatki[DATUM],G65,podatki[DEJAVNOST],$I$8),NA())","v":{"$error":"#N/A"}},{"$f":"IFERROR(AVERAGEIFS(podatki[c/KILOMETER],podatki[DATUM],G65,podatki[DEJAVNOST],$J$8),NA())","v":{"$error":"#N/A"}}]
[{"$nulls":5},57,"2012-06-26",{"$f":"SUMIFS(podatki[ZA POVRAČILO],podatki[DATUM],G66,podatki[DEJAVNOST],$H$8)","v":0},{"$f":"IFERROR(AVERAGEIFS(podatki[PORABA GORIVA NA STO PREVOŽENIH KILOMETROV],podatki[DATUM],G66,podatki[DEJAVNOST],$I$8),NA())","v":{"$error":"#N/A"}},{"$f":"IFERROR(AVERAGEIFS(podatki[c/KILOMETER],podatki[DATUM],G66,podatki[DEJAVNOST],$J$8),NA())","v":{"$error":"#N/A"}}]
[{"$nulls":5},58,"2012-06-27",{"$f":"SUMIFS(podatki[ZA POVRAČILO],podatki[DATUM],G67,podatki[DEJAVNOST],$H$8)","v":0},{"$f":"IFERROR(AVERAGEIFS(podatki[PORABA GORIVA NA STO PREVOŽENIH KILOMETROV],podatki[DATUM],G67,podatki[DEJAVNOST],$I$8),NA())","v":{"$error":"#N/A"}},{"$f":"IFERROR(AVERAGEIFS(podatki[c/KILOMETER],podatki[DATUM],G67,podatki[DEJAVNOST],$J$8),NA())","v":{"$error":"#N/A"}}]
[{"$nulls":5},59,"2012-06-28",{"$f":"SUMIFS(podatki[ZA POVRAČILO],podatki[DATUM],G68,podatki[DEJAVNOST],$H$8)","v":0},{"$f":"IFERROR(AVERAGEIFS(podatki[PORABA GORIVA NA STO PREVOŽENIH KILOMETROV],podatki[DATUM],G68,podatki[DEJAVNOST],$I$8),NA())","v":{"$error":"#N/A"}},{"$f":"IFERROR(AVERAGEIFS(podatki[c/KILOMETER],podatki[DATUM],G68,podatki[DEJAVNOST],$J$8),NA())","v":{"$error":"#N/A"}}]
[{"$nulls":5},60,"2012-06-29",{"$f":"SUMIFS(podatki[ZA POVRAČILO],podatki[DATUM],G69,podatki[DEJAVNOST],$H$8)","v":0},{"$f":"IFERROR(AVERAGEIFS(podatki[PORABA GORIVA NA STO PREVOŽENIH KILOMETROV],podatki[DATUM],G69,podatki[DEJAVNOST],$I$8),NA())","v":{"$error":"#N/A"}},{"$f":"IFERROR(AVERAGEIFS(podatki[c/KILOMETER],podatki[DATUM],G69,podatki[DEJAVNOST],$J$8),NA())","v":{"$error":"#N/A"}}]